bitfinex/quotes_BTCUSD_20241025
["timestamp","ask_amount","ask_price","bid_price","bid_amount"]
[1729870474681,0.48625141,68307.0,68306.0,0.000825]
[1729870474930,0.29855081,68307.0,68306.0,0.000825]
[1729870475176,0.00165,68307.0,68306.0,0.2595256]
[1729870475429,0.148047,68307.0,68306.0,0.094825]
[1729870477237,0.00165,68307.0,68306.0,0.094825]
[1729870477708,0.148047,68307.0,68306.0,0.094825]
[1729870478192,0.00165,68307.0,68306.0,0.094825]
[1729870478422,0.148047,68307.0,68306.0,0.094825]
[1729870480465,0.46325141,68307.0,68306.0,0.000825]
[1729870480888,0.29855081,68307.0,68306.0,0.000825]
[1729870482456,0.148047,68307.0,68306.0,0.000825]
[1729870482637,0.00165,68307.0,68306.0,0.183225]
[1729870483106,0.00165,68307.0,68306.0,0.329625]
[1729870483339,0.00165,68307.0,68306.0,0.33420236]
[1729870483552,0.00165,68307.0,68306.0,0.329625]
[1729870484033,0.00165,68307.0,68306.0,0.18780236]
[1729870484727,0.00165,68307.0,68306.0,0.329625]
[1729870485399,0.00165,68307.0,68306.0,0.33420236]
[1729870485636,0.00165,68307.0,68306.0,0.329625]
[1729870486550,0.00165,68307.0,68306.0,0.33420236]
[1729870488149,0.00165,68307.0,68306.0,0.33920236]
[1729870488371,0.00165,68307.0,68306.0,0.50390243]
[1729870488616,0.00165,68307.0,68306.0,0.51390243]
[1729870490677,0.00165,68307.0,68306.0,0.51590243]
[1729870490891,0.00165,68307.0,68306.0,0.51390243]
[1729870492010,0.00165,68307.0,68306.0,0.51390216]
[1729870492982,0.00165,68307.0,68306.0,0.50890216]
[1729870493247,0.00165,68307.0,68306.0,0.33920156]
[1729870493472,0.00165,68307.0,68306.0,0.4993256]
[1729870493722,0.00165,68307.0,68306.0,0.50390251]
[1729870493953,0.00165,68307.0,68306.0,0.49890251]
[1729870494178,0.00165,68307.0,68306.0,0.50390251]
[1729870494846,0.00165,68307.0,68306.0,0.49890251]
[1729870495571,0.00165,68307.0,68306.0,0.10490191]
[1729870495783,0.00165,68307.0,68306.0,0.246725]
[1729870496951,0.00165,68307.0,68306.0,0.4114256]
[1729870497383,0.00165,68307.0,68306.0,0.41600268]
[1729870498318,0.00165,68307.0,68306.0,0.25130208]
[1729870498960,0.00165,68307.0,68306.0,0.00540207]
[1729870499219,0.00165,68307.0,68306.0,0.147225]
[1729870499436,0.00165,68307.0,68306.0,0.15180207]
[1729870500292,0.148047,68307.0,68306.0,0.00540207]
[1729870500523,0.148047,68307.0,68306.0,0.000825]
[1729870501173,0.29855081,68307.0,68306.0,0.000825]
[1729870501402,0.48625141,68307.0,68306.0,0.000825]
[1729870501614,0.29855081,68307.0,68306.0,0.000825]
[1729870502698,0.00165,68307.0,68306.0,0.000825]
[1729870504278,0.148047,68307.0,68306.0,0.000825]
[1729870504717,0.29855081,68307.0,68306.0,0.000825]
[1729870506537,0.148047,68307.0,68306.0,0.000825]
[1729870508499,0.37675081,68307.0,68306.0,0.000825]
[1729870508971,0.29855081,68307.0,68306.0,0.000825]
[1729870511220,0.00165,68307.0,68306.0,0.000825]
[1729870511433,0.00165,68307.0,68306.0,0.147225]
[1729870513289,0.00165,68307.0,68306.0,0.334025]
[1729870513529,0.00165,68316.0,68315.0,0.14638]
[1729870514185,0.00165,68316.0,68315.0,0.14930732]
[1729870514683,0.00165,68316.0,68315.0,0.32910732]
[1729870514912,0.00165,68316.0,68315.0,0.33618]
[1729870515615,0.00165,68316.0,68315.0,0.48668381]
[1729870518950,0.00165,68316.0,68315.0,0.25058]
[1729870519190,0.00165,68316.0,68310.0,0.005]
[1729870519649,0.00165,68316.0,68312.0,0.146386]
[1729870519903,0.00165,68316.0,68310.0,0.005]
[1729870519904,0.36660166,68315.0,68310.0,0.005]
[1729870520121,0.00165,68316.0,68310.0,0.005]
[1729870520122,0.14803,68316.0,68311.0,0.146389]
[1729870520355,0.14803,68316.0,68310.0,0.005]
[1729870520356,0.14803,68316.0,68312.0,0.146386]
[1729870520813,0.14803,68316.0,68313.0,0.146384]
[1729870521027,0.00165,68316.0,68313.0,0.146384]
[1729870521667,0.148028,68316.0,68313.0,0.146384]
[1729870521882,0.00165,68316.0,68306.0,0.1705256]
[1729870522119,0.00165,68316.0,68308.0,0.005]
[1729870522350,0.00165,68316.0,68307.0,0.292795]
[1729870522351,0.00165,68316.0,68314.0,0.146382]
[1729870522558,0.36660166,68315.0,68311.0,0.146387]
[1729870522771,0.36660166,68315.0,68312.0,0.146386]
[1729870522772,0.146381,68315.0,68312.0,0.146386]
[1729870522985,0.00165,68316.0,68312.0,0.146386]
[1729870523214,0.00165,68316.0,68314.0,0.146381]
[1729870523467,0.00165,68316.0,68313.0,0.146382]
[1729870523708,0.00165,68316.0,68312.0,0.292771]
[1729870523933,0.00165,68316.0,68313.0,0.29277]
[1729870524165,0.00165,68316.0,68314.0,0.14638]
[1729870524838,0.00165,68316.0,68315.0,0.14638]
[1729870525984,0.00165,68316.0,68315.0,0.14930745]
[1729870526244,0.00165,68316.0,68315.0,0.24960745]
[1729870526477,0.00165,68316.0,68315.0,0.39718381]
[1729870526705,0.00165,68316.0,68315.0,0.40718381]
[1729870527828,0.00165,68316.0,68315.0,0.57388441]
[1729870528064,0.146329,68339.0,68329.0,0.14635]
[1729870528290,0.146332,68338.0,68329.0,0.14635]
[1729870528749,0.00165,68330.0,68329.0,0.14635]
[1729870529205,0.00165,68330.0,68329.0,0.32677661]
[1729870529441,0.00165,68330.0,68329.0,0.32385]
[1729870530346,0.00165,68330.0,68329.0,0.14635]
[1729870530577,0.15215381,68330.0,68313.0,0.04374894]
[1729870530816,0.146356,68327.0,68323.0,0.146362]
[1729870531030,0.146357,68326.0,68321.0,0.292732]
[1729870531250,0.14636,68325.0,68321.0,0.146367]
[1729870531479,0.15050381,68329.0,68320.0,0.292736]
[1729870531708,0.15050381,68329.0,68319.0,0.00292711]
[1729870531934,0.29271,68327.0,68319.0,0.292743]
[1729870532154,0.146362,68324.0,68320.0,0.146369]
[1729870532792,0.146362,68324.0,68321.0,0.146367]
[1729870533041,0.15050381,68329.0,68320.0,0.29274]
[1729870533266,0.146353,68328.0,68317.0,0.00292711]
[1729870533503,0.146358,68326.0,68321.0,0.146365]
[1729870533791,0.00165,68330.0,68319.0,0.1647006]
[1729870534030,0.00165,68330.0,68328.0,0.14635]
[1729870536033,0.00165,68330.0,68327.0,0.146354]
[1729870536275,0.00165,68330.0,68322.0,0.146364]
[1729870536484,0.146357,68326.0,68322.0,0.146364]
[1729870536709,0.146351,68329.0,68323.0,0.292726]
[1729870536917,0.00165,68330.0,68321.0,0.292735]
[1729870537125,0.00165,68330.0,68324.0,0.14636]
[1729870537351,0.146351,68329.0,68324.0,0.146361]
[1729870537575,0.146351,68329.0,68324.0,0.146359]
[1729870537801,0.00165,68330.0,68324.0,0.146359]
[1729870538021,0.14635,68329.0,68324.0,0.146359]
[1729870538440,0.00165,68330.0,68321.0,0.292735]
[1729870538665,0.14636,68325.0,68320.0,0.146368]
[1729870538876,0.146366,68322.0,68317.0,0.146376]
[1729870539079,0.292705,68328.0,68316.0,0.000825]
[1729870539080,0.14637,68320.0,68316.0,0.000825]
[1729870539335,0.0799,68320.0,68316.0,0.000825]
[1729870539544,0.146376,68317.0,68316.0,0.000825]
[1729870540010,0.146374,68318.0,68316.0,0.000825]
[1729870540442,0.292744,68319.0,68316.0,0.000825]
[1729870540443,0.146373,68319.0,68316.0,0.000825]
[1729870540655,0.146372,68319.0,68316.0,0.000825]
[1729870541327,0.15050381,68319.0,68316.0,0.000825]
[1729870541756,0.146374,68318.0,68316.0,0.000825]
[1729870542183,0.146362,68324.0,68317.0,0.292752]
[1729870542394,0.59123866,68326.0,68316.0,0.000825]
[1729870542678,0.00165,68330.0,68318.0,0.1647006]
[1729870542889,0.00165,68330.0,68320.0,0.29274]
[1729870543120,0.00165,68330.0,68324.0,0.14636]
[1729870543350,0.14635,68329.0,68325.0,0.146358]
[1729870543576,0.146353,68328.0,68325.0,0.146358]
[1729870544439,0.22022066,68326.0,68319.0,0.292744]
[1729870544677,0.146368,68321.0,68317.0,0.146376]
[1729870545611,0.292722,68324.0,68316.0,0.000825]
[1729870545829,0.14637,68320.0,68316.0,0.000825]
[1729870546302,0.439098,68322.0,68317.0,0.146375]
[1729870546547,0.146367,68322.0,68318.0,0.146373]
[1729870546794,0.146367,68322.0,68318.0,0.146372]
[1729870547497,0.146367,68322.0,68317.0,0.292752]
[1729870547498,0.146368,68321.0,68317.0,0.146376]
[1729870547947,0.292722,68324.0,68316.0,0.147203]
[1729870547948,0.146372,68319.0,68316.0,0.147203]
[1729870548190,0.292733,68322.0,68316.0,0.000825]
[1729870548400,0.146368,68321.0,68317.0,0.146376]
[1729870549081,0.292727,68323.0,68316.0,0.000825]
[1729870549289,0.14637,68320.0,68316.0,0.147203]
[1729870549496,0.292727,68323.0,68316.0,0.293581]
[1729870549729,0.146367,68322.0,68318.0,0.146374]
[1729870550413,0.292727,68323.0,68316.0,0.000825]
[1729870550637,0.292727,68323.0,68316.0,0.147202]
[1729870550852,0.22022066,68324.0,68316.0,0.000825]
[1729870551067,0.146374,68318.0,68316.0,0.000825]
[1729870551522,0.229376,68317.0,68316.0,0.000825]
[1729870554139,0.54458041,68317.0,68316.0,0.000825]
[1729870555881,0.56758041,68317.0,68316.0,0.000825]
[1729870556112,0.76058041,68317.0,68316.0,0.000825]
[1729870556322,0.80418628,68317.0,68316.0,0.000825]
[1729870556787,0.47987981,68317.0,68316.0,0.000825]
[1729870557683,0.146376,68317.0,68316.0,0.000825]
[1729870559212,0.29687981,68317.0,68316.0,0.000825]
[1729870559435,0.39907981,68317.0,68316.0,0.000825]
[1729870559880,0.37607981,68317.0,68316.0,0.000825]
[1729870563700,0.225576,68317.0,68316.0,0.000825]
[1729870563924,0.146376,68317.0,68316.0,0.000825]
[1729870564610,0.146376,68317.0,68304.0,0.22022066]
[1729870564611,0.1647006,68317.0,68304.0,0.22022066]
[1729870564830,0.146388,68312.0,68305.0,0.146402]
[1729870565051,0.22022066,68315.0,68303.0,0.07700999]
[1729870565254,0.22022066,68308.0,68301.0,0.1012]
[1729870565469,0.292778,68311.0,68301.0,0.247609]
[1729870565745,0.292782,68310.0,68301.0,0.1012]
[1729870565949,0.292793,68308.0,68302.0,0.146408]
[1729870566169,0.1464,68306.0,68302.0,0.146408]
[1729870566551,0.146396,68308.0,68303.0,0.146406]
[1729870566701,0.083,68312.0,68301.0,0.24761]
[1729870566902,0.22022066,68308.0,68301.0,0.1012]
[1729870567132,0.2928,68306.0,68296.0,0.14642]
[1729870567356,0.15050381,68306.0,68296.0,0.22022066]
[1729870567573,0.146411,68301.0,68297.0,0.146419]
[1729870568354,0.146415,68299.0,68295.0,0.147248]
[1729870568781,0.146412,68301.0,68297.0,0.146419]
[1729870569453,0.146412,68301.0,68297.0,0.147244]
[1729870569847,0.14641,68301.0,68297.0,0.000825]
[1729870570078,0.146417,68298.0,68297.0,0.000825]
[1729870570299,0.295636,68298.0,68297.0,0.000825]
[1729870572765,0.318636,68298.0,68297.0,0.000825]
[1729870574292,0.33535042,68298.0,68297.0,0.000825]
[1729870574736,0.43535042,68298.0,68297.0,0.000825]
[1729870577423,0.395636,68298.0,68297.0,0.000825]
[1729870577639,0.5603366,68298.0,68297.0,0.000825]
[1729870579065,0.5833366,68298.0,68297.0,0.000825]
[1729870580225,0.90404041,68298.0,68297.0,0.000825]
[1729870580676,0.7535366,68298.0,68297.0,0.000825]
[1729870581301,0.7551866,68298.0,68297.0,0.000825]
[1729870582176,0.590526,68298.0,68297.0,0.000825]
[1729870584784,0.007,68296.0,68295.0,0.000825]
[1729870585114,0.146451,68282.0,68281.0,0.22022066]
[1729870585351,0.58465541,68282.0,68281.0,0.22022066]
[1729870585631,0.146457,68279.0,68278.0,0.000825]
[1729870585873,0.50076081,68279.0,68278.0,0.000825]
[1729870586304,0.66546141,68279.0,68278.0,0.000825]
[1729870588287,0.68244166,68279.0,68278.0,0.000825]
[1729870589895,0.68744166,68279.0,68278.0,0.000825]
[1729870590130,0.7103698,68279.0,68278.0,0.000825]
[1729870590359,0.86087361,68279.0,68278.0,0.000825]
[1729870590596,0.7103698,68279.0,68278.0,0.000825]
[1729870591558,0.7223698,68279.0,68278.0,0.000825]
[1729870591791,0.7203698,68279.0,68278.0,0.000825]
[1729870592966,0.7213698,68279.0,68278.0,0.000825]
[1729870593436,0.7233698,68279.0,68278.0,0.000825]
[1729870593677,0.96527361,68279.0,68278.0,0.000825]
[1729870593933,0.96527361,68279.0,68268.0,0.000828]
[1729870594193,0.7871802,68269.0,68268.0,0.000828]
[1729870594436,0.93968401,68269.0,68268.0,0.000828]
[1729870594668,0.93768401,68269.0,68268.0,0.000828]
[1729870594900,0.77298341,68269.0,68268.0,0.000828]
[1729870595136,0.93968401,68269.0,68268.0,0.000828]
[1729870595613,1.07577275,68269.0,68268.0,0.000828]
[1729870595615,0.77298341,68269.0,68268.0,0.000828]
[1729870596585,0.80396043,68269.0,68268.0,0.000828]
[1729870596813,0.78996043,68269.0,68268.0,0.000828]
[1729870597278,0.79496043,68269.0,68268.0,0.000828]
[1729870597766,0.94224687,68269.0,68268.0,0.001828]
[1729870598030,0.93324687,68269.0,68268.0,0.000828]
[1729870598259,0.79496043,68269.0,68268.0,0.000828]
[1729870598472,0.79296043,68269.0,68268.0,0.000828]
[1729870598712,0.78996043,68269.0,68268.0,0.000828]
[1729870598951,0.79496043,68269.0,68268.0,0.000828]
[1729870599183,0.92974687,68269.0,68268.0,0.000828]
[1729870599432,0.78996043,68269.0,68268.0,0.000828]
[1729870599669,0.80196043,68269.0,68268.0,0.001828]
[1729870599902,0.80396043,68269.0,68268.0,0.001828]
[1729870600637,0.80196043,68269.0,68268.0,0.001828]
[1729870601579,0.80396043,68269.0,68268.0,0.001828]
[1729870601805,1.10764747,68269.0,68268.0,0.001828]
[1729870602298,1.19559747,68269.0,68268.0,0.001828]
[1729870602527,1.19559747,68269.0,68247.0,0.000828]
[1729870602528,0.4342246,68248.0,68247.0,0.000828]
[1729870602759,0.58472841,68248.0,68247.0,0.000828]
[1729870603507,0.58972841,68248.0,68247.0,0.000828]
[1729870603730,0.67292841,68248.0,68247.0,0.000828]
[1729870604403,0.7201586,68248.0,68247.0,0.000828]
[1729870604660,0.58472841,68248.0,68247.0,0.000828]
[1729870604901,0.01,68268.0,68247.0,0.21825163]
[1729870605148,0.22022066,68256.0,68247.0,0.176528]
[1729870605404,0.146497,68261.0,68249.0,0.1647006]
[1729870605649,0.1647006,68267.0,68261.0,0.146495]
[1729870605650,0.146484,68267.0,68261.0,0.146495]
[1729870605928,0.292942,68273.0,68248.0,0.22022066]
[1729870605929,0.15050381,68266.0,68258.0,0.1647006]
[1729870606161,0.15050381,68266.0,68265.0,0.146487]
[1729870606404,0.01633536,68272.0,68258.0,0.1647006]
[1729870606653,0.01633536,68272.0,68257.0,0.22022066]
[1729870606654,0.01633536,68272.0,68266.0,0.1647006]
[1729870606885,0.01633536,68272.0,68271.0,0.146475]
[1729870607368,0.22022066,68282.0,68281.0,0.146453]
[1729870607844,0.146435,68290.0,68277.0,0.374121]
[1729870608085,0.146435,68290.0,68287.0,0.0991]
[1729870608086,0.22022066,68290.0,68287.0,0.0991]
[1729870608328,0.22022066,68296.0,68294.0,0.146425]
[1729870608794,0.00169,68298.0,68294.0,0.146425]
[1729870609029,0.00169,68298.0,68281.0,0.001]
[1729870609030,0.00169,68298.0,68285.0,0.1697006]
[1729870609279,0.146432,68291.0,68286.0,0.146441]
[1729870609497,0.29693081,68294.0,68289.0,0.146435]
[1729870609746,0.15050381,68294.0,68287.0,0.39198]
[1729870609993,0.146428,68293.0,68289.0,0.146435]
[1729870610227,0.15050381,68293.0,68287.0,0.245539]
[1729870610460,0.29693181,68293.0,68289.0,0.146436]
[1729870610692,0.15050381,68293.0,68287.0,0.0941]
[1729870611174,0.146432,68291.0,68287.0,0.24054]
[1729870611176,0.29693181,68293.0,68287.0,0.386979]
[1729870611405,0.15050381,68293.0,68287.0,0.386979]
[1729870611641,0.15050381,68293.0,68291.0,0.146431]
[1729870611880,0.15050381,68293.0,68289.0,0.147434]
[1729870612121,0.15050381,68293.0,68292.0,0.14643]
[1729870612353,0.15050381,68293.0,68290.0,0.146433]
[1729870612581,0.15050381,68293.0,68288.0,0.292877]
[1729870612791,0.00165,68295.0,68294.0,0.146425]
[1729870613500,0.00165,68295.0,68294.0,0.61984022]
[1729870613743,0.00165,68295.0,68294.0,0.47239127]
[1729870614438,0.00165,68295.0,68294.0,0.245725]
[1729870615545,0.00165,68295.0,68294.0,0.246725]
[1729870615983,0.00165,68295.0,68294.0,0.245725]
[1729870616390,0.00165,68295.0,68294.0,0.246725]
[1729870617929,0.00165,68295.0,68294.0,0.245725]
[1729870618154,0.00165,68295.0,68294.0,0.1003]
[1729870618607,0.00165,68295.0,68294.0,0.0993]
[1729870618815,0.00165,68295.0,68294.0,0.245725]
[1729870619065,0.00165,68295.0,68294.0,0.246725]
[1729870619515,0.00165,68295.0,68294.0,0.245725]
[1729870619751,0.00165,68295.0,68294.0,0.49699127]
[1729870621058,0.146427,68294.0,68287.0,0.292877]
[1729870621307,0.00165,68295.0,68285.0,0.005]
[1729870621519,0.00165,68295.0,68282.0,0.0972]
[1729870621520,0.148073,68295.0,68294.0,0.001]
[1729870621941,0.146439,68288.0,68284.0,0.146446]
[1729870622169,0.00165,68295.0,68284.0,0.146446]
[1729870622170,0.00165,68295.0,68287.0,0.22022066]
[1729870622388,0.00165,68295.0,68294.0,0.001]
[1729870622602,0.29857681,68295.0,68294.0,0.001]
[1729870622817,0.292852,68294.0,68284.0,0.29289]
[1729870623022,0.146437,68289.0,68287.0,0.22022066]
[1729870623262,0.292855,68293.0,68284.0,0.29289]
[1729870623499,0.146437,68289.0,68282.0,0.0972]
[1729870623756,0.146434,68291.0,68286.0,0.146441]
[1729870624175,0.146431,68292.0,68287.0,0.146439]
[1729870624386,0.292868,68291.0,68284.0,0.001]
[1729870624608,0.146435,68290.0,68285.0,0.146444]
[1729870624834,0.146437,68289.0,68285.0,0.146444]
[1729870625056,0.146437,68289.0,68286.0,0.001]
[1729870625268,0.146427,68294.0,68288.0,0.146438]
[1729870625494,0.00165,68295.0,68294.0,0.146425]
[1729870625714,0.00165,68295.0,68292.0,0.292857]
[1729870625945,0.00165,68295.0,68293.0,0.146427]
[1729870626179,0.00165,68295.0,68292.0,0.292857]
[1729870626180,0.00165,68295.0,68294.0,0.146425]
[1729870626490,0.00165,68295.0,68294.0,0.238425]
[1729870626704,0.00165,68295.0,68294.0,0.24135316]
[1729870627802,0.00165,68295.0,68294.0,0.238425]
[1729870628220,0.00165,68295.0,68294.0,0.239425]
[1729870628625,0.00165,68295.0,68294.0,0.238425]
[1729870628855,0.00165,68295.0,68293.0,0.146426]
[1729870629048,0.00165,68295.0,68294.0,0.001]
[1729870629511,0.148073,68295.0,68294.0,0.001]
[1729870630224,0.29857681,68295.0,68294.0,0.001]
[1729870631098,0.146442,68287.0,68281.0,0.292907]
[1729870631307,0.15215381,68295.0,68280.0,0.22022066]
[1729870631476,0.146438,68289.0,68283.0,0.146448]
[1729870631665,0.292877,68288.0,68280.0,0.22022066]
[1729870631870,0.15050381,68287.0,68278.0,0.000825]
[1729870632086,0.292903,68282.0,68278.0,0.000825]
[1729870632464,0.146457,68279.0,68278.0,0.000825]
[1729870633547,0.15050381,68281.0,68278.0,0.000825]
[1729870633979,0.15050381,68281.0,68279.0,0.146455]
[1729870634267,0.15050381,68281.0,68278.0,0.001825]
[1729870634509,0.146456,68280.0,68278.0,0.001825]
[1729870634717,0.146456,68280.0,68278.0,0.000825]
[1729870634926,0.15050381,68281.0,68279.0,0.146457]
[1729870635571,0.146447,68284.0,68280.0,0.146455]
[1729870635794,0.15050381,68283.0,68278.0,0.001825]
[1729870636015,0.15050381,68283.0,68281.0,0.146452]
[1729870636453,0.292861,68292.0,68281.0,0.38502321]
[1729870636685,0.22022066,68289.0,68278.0,0.001825]
[1729870636903,0.146449,68284.0,68278.0,0.293743]
[1729870637108,0.15050381,68288.0,68285.0,0.146444]
[1729870637755,0.15050381,68288.0,68286.0,0.146442]
[1729870638031,0.15050381,68288.0,68280.0,0.22022066]
[1729870638253,0.00165,68295.0,68294.0,0.146425]
[1729870639374,0.00165,68295.0,68294.0,0.14935325]
[1729870639590,0.00165,68295.0,68294.0,0.22625325]
[1729870639840,0.00165,68295.0,68294.0,0.23125325]
[1729870640074,0.00165,68295.0,68294.0,0.48855706]
[1729870640322,0.00169,68298.0,68297.0,0.32622155]
[1729870640833,0.00169,68298.0,68297.0,0.31622155]
[1729870641056,0.00169,68298.0,68297.0,0.146419]
[1729870641975,0.00169,68298.0,68297.0,0.147419]
[1729870642439,0.00169,68298.0,68290.0,0.292868]
[1729870642665,0.146423,68296.0,68290.0,0.292868]
[1729870642920,0.00169,68298.0,68290.0,0.292868]
[1729870642921,0.146423,68295.0,68291.0,0.36665166]
[1729870643144,0.00169,68298.0,68290.0,0.292868]
[1729870643386,0.146424,68295.0,68290.0,0.146433]
[1729870643607,0.146422,68296.0,68292.0,0.146429]
[1729870643829,0.146422,68296.0,68288.0,0.51309766]
[1729870643830,0.00169,68298.0,68297.0,0.001]
[1729870644279,0.00169,68298.0,68296.0,0.146419]
[1729870644507,0.00169,68298.0,68297.0,0.146419]
[1729870644979,0.00169,68298.0,68292.0,0.292859]
[1729870645219,0.00169,68298.0,68297.0,0.146419]
[1729870645471,0.00169,68298.0,68295.0,0.146422]
[1729870645951,0.00169,68298.0,68297.0,0.001]
[1729870646882,0.148107,68298.0,68297.0,0.001]
[1729870647098,0.148107,68298.0,68293.0,0.146426]
[1729870647564,0.148107,68298.0,68291.0,0.146431]
[1729870647565,0.146423,68296.0,68291.0,0.146431]
[1729870647799,0.29692581,68296.0,68291.0,0.146431]
[1729870648028,0.146424,68295.0,68291.0,0.146431]
[1729870648491,0.15050381,68296.0,68294.0,0.146424]
[1729870648706,0.29692481,68296.0,68293.0,0.001]
[1729870648931,0.29692481,68296.0,68288.0,0.22022066]
[1729870648932,0.15050381,68296.0,68288.0,0.22022066]
[1729870649153,0.15050381,68296.0,68295.0,0.146423]
[1729870649423,0.15050381,68296.0,68293.0,0.146425]
[1729870649644,0.15050381,68296.0,68294.0,0.146423]
[1729870650104,0.00169,68298.0,68297.0,0.146419]
[1729870650788,0.00169,68298.0,68292.0,0.29286]
[1729870651026,0.00169,68298.0,68296.0,0.14642]
[1729870651246,0.15050381,68297.0,68294.0,0.001]
[1729870651472,0.146423,68295.0,68294.0,0.001]
[1729870651707,0.00165,68295.0,68286.0,0.146441]
[1729870651944,0.148074,68295.0,68291.0,0.146431]
[1729870652182,0.148074,68295.0,68288.0,0.22022066]
[1729870652183,0.148074,68295.0,68292.0,0.146429]
[1729870652406,0.148074,68295.0,68290.0,0.292868]
[1729870652627,0.148074,68295.0,68291.0,0.14643]
[1729870654175,0.00165,68295.0,68294.0,0.146425]
[1729870654397,0.00165,68295.0,68294.0,0.147425]
[1729870654853,0.00165,68295.0,68294.0,0.146425]
[1729870657199,0.00165,68295.0,68294.0,0.147425]
[1729870657419,0.00165,68295.0,68294.0,0.31415563]
[1729870657640,0.00165,68295.0,68294.0,0.31122755]
[1729870657867,0.00165,68295.0,68294.0,0.31222755]
[1729870658311,0.00165,68295.0,68294.0,0.31122755]
[1729870658773,0.00165,68295.0,68294.0,0.41332755]
[1729870658999,0.00165,68295.0,68294.0,0.42332755]
[1729870659905,0.00165,68295.0,68294.0,0.57583136]
[1729870660144,0.00165,68295.0,68294.0,0.57483136]
[1729870660374,0.00165,68295.0,68294.0,0.57283136]
[1729870660597,0.00165,68295.0,68294.0,0.57383136]
[1729870660830,0.00165,68295.0,68294.0,0.57583136]
[1729870661073,0.00165,68295.0,68294.0,0.258525]
[1729870661300,0.00165,68295.0,68294.0,0.41095663]
[1729870661526,0.00165,68295.0,68294.0,0.41102881]
[1729870661748,0.00165,68295.0,68294.0,0.40902881]
[1729870662028,0.00165,68295.0,68294.0,0.40802881]
[1729870662960,0.00165,68295.0,68294.0,0.57283136]
[1729870663182,0.00165,68295.0,68294.0,0.40802881]
[1729870663409,0.00165,68295.0,68294.0,0.40902881]
[1729870663661,0.00165,68295.0,68294.0,0.41102881]
[1729870663898,0.00165,68295.0,68294.0,0.41002881]
[1729870664146,0.00165,68295.0,68294.0,0.41102881]
[1729870664662,0.00165,68295.0,68294.0,0.67483136]
[1729870664924,0.00165,68295.0,68294.0,0.58872881]
[1729870665151,0.00165,68295.0,68294.0,0.58972881]
[1729870666250,0.00165,68295.0,68294.0,0.58872881]
[1729870666748,0.00165,68295.0,68294.0,0.58972881]
[1729870667209,0.00165,68295.0,68294.0,0.58872881]
[1729870667442,0.00165,68295.0,68294.0,0.58972881]
[1729870667681,0.00165,68295.0,68294.0,0.58772881]
[1729870667915,0.00165,68295.0,68294.0,0.58872881]
[1729870668144,0.00165,68295.0,68294.0,0.75353136]
[1729870668410,0.00165,68295.0,68294.0,0.75453136]
[1729870669091,0.00165,68295.0,68294.0,0.58472881]
[1729870669326,0.00165,68295.0,68294.0,0.58972881]
[1729870669559,0.00165,68295.0,68294.0,0.58872881]
[1729870669810,0.00165,68295.0,68294.0,0.58972881]
[1729870670275,0.00165,68295.0,68294.0,0.58872881]
[1729870670726,0.00165,68295.0,68294.0,0.58972881]
[1729870670968,0.00165,68295.0,68294.0,0.58772881]
[1729870671202,0.00165,68295.0,68294.0,0.58672881]
[1729870671438,0.00165,68295.0,68294.0,0.58772881]
[1729870672803,0.00165,68295.0,68294.0,0.58672881]
[1729870673023,0.00165,68295.0,68294.0,0.58772881]
[1729870673474,0.00165,68295.0,68294.0,0.58972881]
[1729870674381,0.00165,68295.0,68294.0,0.49902881]
[1729870674613,0.00165,68295.0,68294.0,0.258525]
[1729870674867,0.00165,68295.0,68294.0,0.147425]
[1729870675116,0.00165,68295.0,68294.0,0.14825]
[1729870675787,0.00165,68295.0,68294.0,0.31305255]
[1729870676248,0.00165,68295.0,68294.0,0.31205255]
[1729870676735,0.00165,68295.0,68294.0,0.31305255]
[1729870677177,0.00165,68295.0,68294.0,0.31205255]
[1729870677406,0.00165,68295.0,68294.0,0.31305255]
[1729870677864,0.00165,68295.0,68294.0,0.31205255]
[1729870678308,0.00165,68295.0,68294.0,0.31305255]
[1729870679483,0.00165,68295.0,68294.0,0.31205255]
[1729870679716,0.00165,68295.0,68294.0,0.31305255]
[1729870679909,0.00165,68295.0,68294.0,0.14825]
[1729870681626,0.00165,68295.0,68294.0,0.001825]
[1729870681627,0.148073,68295.0,68294.0,0.001825]
[1729870681848,0.00165,68295.0,68294.0,0.14825]
[1729870682534,0.00165,68295.0,68294.0,0.31305255]
[1729870683426,0.00165,68295.0,68294.0,0.31505255]
[1729870683885,0.00165,68295.0,68294.0,0.46855636]
[1729870684102,0.00165,68295.0,68294.0,0.48055636]
[1729870684768,0.00169,68295.0,68294.0,0.48055636]
[1729870685218,0.00169,68295.0,68294.0,0.47855636]
[1729870685445,0.00169,68295.0,68294.0,0.15325]
[1729870685666,0.00169,68295.0,68294.0,0.14825]
[1729870689281,0.00169,68295.0,68294.0,0.001825]
[1729870689282,0.148113,68295.0,68294.0,0.001825]
[1729870689516,0.00169,68295.0,68294.0,0.001825]
[1729870689978,0.148113,68295.0,68294.0,0.001825]
[1729870691193,0.00169,68295.0,68294.0,0.14825]
[1729870691415,0.00169,68295.0,68294.0,0.001825]
[1729870691853,0.00169,68295.0,68294.0,0.14825]
[1729870693582,0.00169,68295.0,68294.0,0.001825]
[1729870693800,0.00169,68295.0,68294.0,0.14825]
[1729870694228,0.00169,68295.0,68294.0,0.001825]
[1729870694690,0.148113,68295.0,68294.0,0.001825]
[1729870699128,0.00169,68295.0,68294.0,0.001825]
[1729870703131,0.148113,68295.0,68294.0,0.001825]
[1729870704291,0.29861681,68295.0,68294.0,0.001825]
[1729870704515,0.54471936,68295.0,68294.0,0.001825]
[1729870705015,0.68271936,68295.0,68294.0,0.000825]
[1729870705274,0.68271936,68295.0,68294.0,0.001825]
[1729870705737,0.68271936,68295.0,68294.0,0.000825]
[1729870705950,0.93151592,68295.0,68294.0,0.001825]
[1729870706159,0.84408707,68295.0,68294.0,0.001825]